[Event "Klubbmästerskap 2025 Torsdagar"]
[Site "Linköping, Sweden"]
[Date "2025.03.27"]
[Round "8.2"]
[White "Halvarsson, Peter"]
[Black "Pettersson, Börje"]
[Result "0-1"]
[TimeControl "90 min + 30 sec/move"]
[WhiteElo "1927"]
[BlackElo "1906"]

1. e4 {[%clk 01:30:52]} {[%emt 00:00:06]} c5 {[%clk 01:30:48]} {[%emt
00:00:13]} 2. Nf3 {[%clk 01:30:35]} {[%emt 00:00:47]} Nc6 {[%clk 01:27:54]}
{[%emt 00:03:24]} 3. b4 {[%clk 01:30:02]} {[%emt 00:01:04]} cxb4 {[%clk
01:23:42]} {[%emt 00:04:41]} 4. d4 {[%clk 01:30:00]} {[%emt 00:00:33]} d5
{[%clk 01:23:04]} {[%emt 00:01:07]} 5. exd5 {[%clk 01:30:16]} {[%emt 00:00:15]}
Qxd5 {[%clk 01:23:23]} {[%emt 00:00:10]} 6. c4 {[%clk 01:29:56]} {[%emt
00:00:51]} bxc3 {[%clk 00:57:33]} {[%emt 00:26:20]} 7. Nxc3 {[%clk 01:30:00]}
{[%emt 00:00:25]} Qa5 {[%clk 00:57:28]} {[%emt 00:00:35]} 8. Rb1 {[%clk
01:29:01]} {[%emt 00:01:30]} e6 {[%clk 00:48:48]} {[%emt 00:09:10]} 9. Bd2
{[%clk 01:26:26]} {[%emt 00:03:03]} Nf6 {[%clk 00:46:49]} {[%emt 00:02:29]} 10.
Bc4 {[%clk 01:12:20]} {[%emt 00:14:37]} Bb4 {[%clk 00:41:20]} {[%emt 00:05:59]}
11. Rxb4 {[%clk 01:07:17]} {[%emt 00:05:33]} Qxb4 {[%clk 00:36:50]} {[%emt
00:04:59]} 12. Qe2 {[%clk 01:00:40]} {[%emt 00:07:07]} O-O {[%clk 00:32:06]}
{[%emt 00:05:15]} 13. O-O {[%clk 00:59:53]} {[%emt 00:01:17]} Rd8 {[%clk
00:09:36]} {[%emt 00:22:59]} 14. d5 {[%clk 00:42:20]} {[%emt 00:18:03]} Na5
{[%clk 00:07:48]} {[%emt 00:02:18]} 15. Bd3 {[%clk 00:42:06]} {[%emt 00:00:44]}
Qd6 {[%clk 00:05:52]} {[%emt 00:02:26]} 16. Ne4 {[%clk 00:05:32]} {[%emt
00:37:04]} Qxd5 {[%clk 00:05:46]} {[%emt 00:00:35]} 17. Nxf6+ {[%clk 00:05:40]}
{[%emt 00:00:23]} gxf6 {[%clk 00:06:11]} {[%emt 00:00:03]} 18. Ne1 {[%clk
00:02:45]} {[%emt 00:03:28]} Nc6 {[%clk 00:05:55]} {[%emt 00:00:45]} 19. Bc3
{[%clk 00:01:29]} {[%emt 00:01:47]} e5 {[%clk 00:05:53]} {[%emt 00:00:33]} 20.
Qh5 {[%clk 00:00:38]} {[%emt 00:01:21]} e4 {[%clk 00:03:17]} {[%emt 00:03:04]}
21. Qh6 {[%clk 00:00:40]} {[%emt 00:00:29]} Qg5 {[%clk 00:01:56]} {[%emt
00:01:51]} 22. Qxg5+ {[%clk 00:01:09]} {[%emt 00:00:02]} fxg5 {[%clk 00:02:18]}
{[%emt 00:00:07]} 23. Bxe4 {[%clk 00:01:29]} {[%emt 00:00:11]} f5 {[%clk
00:02:05]} {[%emt 00:00:42]} 24. Bb1 {[%clk 00:00:38]} {[%emt 00:01:22]} Nd4
{[%clk 00:02:16]} {[%emt 00:00:18]} 25. Bb2 {[%clk 00:00:33]} {[%emt 00:00:35]}
Be6 {[%clk 00:01:42]} {[%emt 00:01:04]} 26. Nc2 {[%clk 00:00:33]} {[%emt
00:00:31]} Nxc2 {[%clk 00:01:45]} {[%emt 00:00:26]} 27. Bxc2 {[%clk 00:00:53]}
{[%emt 00:00:11]} Rd2 {[%clk 00:01:51]} {[%emt 00:00:23]} 0-1

[Event "Klubbmästerskap 2025 Torsdagar"]
[Site "Linköping, Sweden"]
[Date "2025.03.27"]
[Round "8.3"]
[White "Ståhlberg, Adam"]
[Black "Nagy, Mate 2009"]
[Result "0-1"]
[TimeControl "90 min + 30 sec/move"]
[WhiteElo "1944"]
[BlackElo "1917"]

1. d4 {[%clk 01:30:56]} {[%emt 00:00:03]} d5 {[%clk 01:30:42]} {[%emt
00:00:18]} 2. c4 {[%clk 01:30:46]} {[%emt 00:00:40]} dxc4 {[%clk 01:31:06]}
{[%emt 00:00:07]} 3. Nc3 {[%clk 01:30:45]} {[%emt 00:00:30]} e5 {[%clk
01:30:39]} {[%emt 00:00:57]} 4. dxe5 {[%clk 01:30:13]} {[%emt 00:01:02]} Qxd1+
{[%clk 01:30:55]} {[%emt 00:00:14]} 5. Kxd1 {[%clk 01:30:20]} {[%emt 00:00:23]}
Be6 {[%clk 01:28:03]} {[%emt 00:03:21]} 6. Nf3 {[%clk 01:19:25]} {[%emt
00:11:26]} Nc6 {[%clk 01:27:16]} {[%emt 00:01:17]} 7. Bf4 {[%clk 01:19:22]}
{[%emt 00:00:33]} O-O-O+ {[%clk 01:26:43]} {[%emt 00:01:03]} 8. Kc1 {[%clk
01:12:10]} {[%emt 00:07:42]} Nge7 {[%clk 01:25:10]} {[%emt 00:02:03]} 9. Ng5
{[%clk 00:39:35]} {[%emt 00:33:04]} Ng6 {[%clk 01:24:10]} {[%emt 00:01:31]} 10.
Nxe6 {[%clk 00:39:18]} {[%emt 00:00:47]} fxe6 {[%clk 01:24:33]} {[%emt
00:00:07]} 11. g3 {[%clk 00:39:23]} {[%emt 00:00:25]} Ncxe5 {[%clk 01:20:02]}
{[%emt 00:05:01]} 12. Bh3 {[%clk 00:31:46]} {[%emt 00:08:06]} Re8 {[%clk
01:18:56]} {[%emt 00:01:36]} 13. Be3 {[%clk 00:20:04]} {[%emt 00:12:12]} Kb8
{[%clk 01:10:46]} {[%emt 00:08:40]} 14. Rd1 {[%clk 00:17:53]} {[%emt 00:02:42]}
Bb4 {[%clk 01:10:04]} {[%emt 00:01:12]} 15. Kc2 {[%clk 00:09:36]} {[%emt
00:08:47]} Nf7 {[%clk 00:59:39]} {[%emt 00:10:55]} 16. f4 {[%clk 00:08:21]}
{[%emt 00:01:46]} Nd6 {[%clk 00:58:44]} {[%emt 00:01:24]} 17. a3 {[%clk
00:06:50]} {[%emt 00:02:01]} Ba5 {[%clk 00:58:03]} {[%emt 00:01:11]} 18. Bc5
{[%clk 00:06:11]} {[%emt 00:01:09]} Bxc3 {[%clk 00:55:39]} {[%emt 00:02:55]} 19.
Kxc3 {[%clk 00:06:14]} {[%emt 00:00:27]} Ne4+ {[%clk 00:55:56]} {[%emt
00:00:13]} 20. Kxc4 {[%clk 00:06:25]} {[%emt 00:00:19]} b6 {[%clk 00:51:39]}
{[%emt 00:04:47]} 21. Bg1 {[%clk 00:06:19]} {[%emt 00:00:35]} Nd6+ {[%clk
00:50:29]} {[%emt 00:01:39]} 22. Kb3 {[%clk 00:06:17]} {[%emt 00:00:33]} e5
{[%clk 00:50:23]} {[%emt 00:00:36]} 23. f5 {[%clk 00:04:46]} {[%emt 00:02:01]}
Ne7 {[%clk 00:49:58]} {[%emt 00:00:54]} 24. g4 {[%clk 00:05:06]} {[%emt
00:00:10]} h5 {[%clk 00:45:16]} {[%emt 00:05:12]} 25. g5 {[%clk 00:04:17]}
{[%emt 00:01:19]} Nexf5 {[%clk 00:43:23]} {[%emt 00:02:24]} 26. e4 {[%clk
00:03:17]} {[%emt 00:01:30]} Nh4 {[%clk 00:41:15]} {[%emt 00:02:37]} 27. Bd7
{[%clk 00:01:55]} {[%emt 00:01:53]} Re7 {[%clk 00:38:20]} {[%emt 00:03:25]} 28.
Bc6 {[%clk 00:02:08]} {[%emt 00:00:16]} Nf3 {[%clk 00:36:46]} {[%emt 00:02:03]}
29. g6 {[%clk 00:00:55]} {[%emt 00:01:44]} Re6 {[%clk 00:34:28]} {[%emt
00:02:47]} 30. Rd3 {[%clk 00:00:58]} {[%emt 00:00:28]} Rf8 {[%clk 00:34:09]}
{[%emt 00:00:49]} 31. Rc1 {[%clk 00:01:03]} {[%emt 00:00:25]} Rxg6 {[%clk
00:32:02]} {[%emt 00:02:38]} 32. Bf2 {[%clk 00:00:59]} {[%emt 00:00:34]} Nxh2
{[%clk 00:29:41]} {[%emt 00:02:50]} 33. Bh4 {[%clk 00:01:12]} {[%emt 00:00:17]}
Rf3 {[%clk 00:29:42]} {[%emt 00:00:29]} 34. Rcc3 {[%clk 00:01:22]} {[%emt
00:00:20]} Rxd3 {[%clk 00:29:24]} {[%emt 00:00:48]} 35. Rxd3 {[%clk 00:01:46]}
{[%emt 00:00:06]} Ng4 {[%clk 00:22:52]} {[%emt 00:07:02]} 36. Rf3 {[%clk
00:01:26]} {[%emt 00:00:50]} Nf5 {[%clk 00:21:39]} {[%emt 00:01:43]} 37. Rxf5
{[%clk 00:01:29]} {[%emt 00:00:28]} Rxc6 {[%clk 00:22:03]} {[%emt 00:00:06]} 38.
Rxh5 {[%clk 00:01:42]} {[%emt 00:00:17]} Rh6 {[%clk 00:22:08]} {[%emt
00:00:25]} 39. Rxh6 {[%clk 00:01:47]} {[%emt 00:00:25]} Nxh6 {[%clk 00:22:22]}
{[%emt 00:00:15]} 40. Kc4 {[%clk 00:01:38]} {[%emt 00:00:41]} c6 {[%clk
00:22:32]} {[%emt 00:00:20]} 41. Be7 {[%clk 00:01:53]} {[%emt 00:00:15]} Nf7
{[%clk 00:22:18]} {[%emt 00:00:43]} 42. b4 {[%clk 00:02:11]} {[%emt 00:00:13]}
Kc7 {[%clk 00:22:22]} {[%emt 00:00:26]} 43. Kd3 {[%clk 00:01:41]} {[%emt
00:00:59]} Kd7 {[%clk 00:22:32]} {[%emt 00:00:20]} 44. Bf8 {[%clk 00:02:06]}
{[%emt 00:00:05]} g5 {[%clk 00:22:19]} {[%emt 00:00:43]} 45. Ke3 {[%clk
00:01:32]} {[%emt 00:01:04]} g4 {[%clk 00:22:28]} {[%emt 00:00:21]} 46. Kf2
{[%clk 00:01:31]} {[%emt 00:00:31]} Nd6 {[%clk 00:22:20]} {[%emt 00:00:37]} 47.
Kg3 {[%clk 00:01:55]} {[%emt 00:00:07]} Nxe4+ {[%clk 00:22:16]} {[%emt
00:00:33]} 48. Kxg4 {[%clk 00:02:20]} {[%emt 00:00:05]} Ke6 {[%clk 00:22:32]}
{[%emt 00:00:15]} 49. Kf3 {[%clk 00:02:17]} {[%emt 00:00:33]} Kd5 {[%clk
00:22:37]} {[%emt 00:00:24]} 50. Ke3 {[%clk 00:02:36]} {[%emt 00:00:12]} Nd6
{[%clk 00:22:43]} {[%emt 00:00:25]} 51. Kd3 {[%clk 00:02:07]} {[%emt 00:00:59]}
c5 {[%clk 00:22:46]} {[%emt 00:00:27]} 52. bxc5 {[%clk 00:02:30]} {[%emt
00:00:07]} bxc5 {[%clk 00:23:08]} {[%emt 00:00:07]} 53. Kc3 {[%clk 00:01:56]}
{[%emt 00:01:03]} Ne4+ {[%clk 00:23:15]} {[%emt 00:00:24]} 54. Kc2 {[%clk
00:02:08]} {[%emt 00:00:18]} c4 {[%clk 00:23:23]} {[%emt 00:00:22]} 55. Be7
{[%clk 00:01:55]} {[%emt 00:00:42]} Nf2 {[%clk 00:22:55]} {[%emt 00:00:57]} 56.
Bg5 {[%clk 00:01:52]} {[%emt 00:00:34]} Kd4 {[%clk 00:22:51]} {[%emt 00:00:34]}
57. Bf6 {[%clk 00:01:51]} {[%emt 00:00:31]} Ng4 {[%clk 00:22:59]} {[%emt
00:00:22]} 58. Bg7 {[%clk 00:01:47]} {[%emt 00:00:35]} c3 {[%clk 00:22:44]}
{[%emt 00:00:46]} 59. Kc1 {[%clk 00:00:48]} {[%emt 00:01:29]} Kd3 {[%clk
00:23:00]} {[%emt 00:00:13]} 60. a4 {[%clk 00:00:35]} {[%emt 00:00:44]} e4
{[%clk 00:23:17]} {[%emt 00:00:12]} 61. a5 {[%clk 00:00:54]} {[%emt 00:00:12]}
a6 {[%clk 00:23:36]} {[%emt 00:00:11]} 62. Bf8 {[%clk 00:00:57]} {[%emt
00:00:27]} e3 {[%clk 00:23:57]} {[%emt 00:00:09]} 63. Be7 {[%clk 00:01:19]}
{[%emt 00:00:08]} e2 {[%clk 00:24:02]} {[%emt 00:00:25]} 64. Bh4 {[%clk
00:01:42]} {[%emt 00:00:06]} Ne3 {[%clk 00:24:28]} {[%emt 00:00:05]} 65. Bf2
{[%clk 00:01:26]} {[%emt 00:00:46]} Ng2 {[%clk 00:24:49]} {[%emt 00:00:09]} 66.
Bg3 {[%clk 00:01:47]} {[%emt 00:00:09]} e1=Q+ {[%clk 00:25:13]} {[%emt
00:00:07]} 67. Bxe1 {[%clk 00:02:03]} {[%emt 00:00:14]} Nxe1 {[%clk 00:25:37]}
{[%emt 00:00:06]} 68. Kd1 {[%clk 00:02:13]} {[%emt 00:00:20]} c2+ {[%clk
00:25:58]} {[%emt 00:00:09]} 69. Kc1 {[%clk 00:02:29]} {[%emt 00:00:14]} Ng2
{[%clk 00:26:25]} {[%emt 00:00:03]} 70. Kb2 {[%clk 00:02:40]} {[%emt 00:00:19]}
Kd2 {[%clk 00:26:51]} {[%emt 00:00:05]} 71. Kb3 {[%clk 00:02:41]} {[%emt
00:00:29]} c1=Q {[%clk 00:27:15]} {[%emt 00:00:06]} 72. Ka2 {[%clk 00:02:58]}
{[%emt 00:00:13]} Qc8 {[%clk 00:27:35]} {[%emt 00:00:10]} 73. Kb3 {[%clk
00:03:16]} {[%emt 00:00:12]} Qc5 {[%clk 00:27:55]} {[%emt 00:00:10]} 74. Ka2
{[%clk 00:03:35]} {[%emt 00:00:11]} Qb5 {[%clk 00:28:22]} {[%emt 00:00:03]} 75.
Ka1 {[%clk 00:03:54]} {[%emt 00:00:11]} Kc1 {[%clk 00:28:47]} {[%emt 00:00:05]}
76. Ka2 {[%clk 00:04:17]} {[%emt 00:00:06]} Qa4# {[%emt 00:00:04]} 0-1

[Event "Klubbmästerskap 2025 Torsdagar"]
[Site "Linköping, Sweden"]
[Date "2025.03.27"]
[Round "8.4"]
[White "Skytt, Klas"]
[Black "Gustafsson, Nils"]
[Result "0-1"]
[TimeControl "90 min + 30 sec/move"]
[WhiteElo "1764"]
[BlackElo "1860"]

1. b4 {[%clk 01:30:34]} {[%emt 00:00:26]} e5 {[%clk 01:30:24]} {[%emt
00:00:36]} 2. Bb2 {[%clk 01:30:36]} {[%emt 00:00:28]} Bxb4 {[%clk 01:29:41]}
{[%emt 00:01:12]} 3. Bxe5 {[%clk 01:30:53]} {[%emt 00:00:14]} Nf6 {[%clk
01:29:06]} {[%emt 00:01:04]} 4. c3 {[%clk 01:29:22]} {[%emt 00:02:02]} Be7
{[%clk 01:27:10]} {[%emt 00:02:25]} 5. d4 {[%clk 01:28:10]} {[%emt 00:01:42]}
d5 {[%clk 01:26:32]} {[%emt 00:01:08]} 6. e3 {[%clk 01:27:48]} {[%emt
00:00:53]} O-O {[%clk 01:25:40]} {[%emt 00:01:20]} 7. Bd3 {[%clk 01:27:27]}
{[%emt 00:00:52]} c5 {[%clk 01:22:54]} {[%emt 00:03:16]} 8. Ne2 {[%clk
01:25:34]} {[%emt 00:02:23]} Nc6 {[%clk 01:21:46]} {[%emt 00:01:38]} 9. Bxf6
{[%clk 01:23:37]} {[%emt 00:02:27]} Bxf6 {[%clk 01:21:51]} {[%emt 00:00:24]} 10.
a3 {[%clk 01:23:52]} {[%emt 00:00:17]} Re8 {[%clk 01:17:20]} {[%emt 00:05:00]}
11. O-O {[%clk 01:23:45]} {[%emt 00:00:36]} c4 {[%clk 01:03:24]} {[%emt
00:14:26]} 12. Bc2 {[%clk 01:23:45]} {[%emt 00:00:30]} Ne7 {[%clk 00:54:09]}
{[%emt 00:09:45]} 13. Ng3 {[%clk 01:16:49]} {[%emt 00:07:27]} g6 {[%clk
00:51:54]} {[%emt 00:02:45]} 14. Qf3 {[%clk 01:15:29]} {[%emt 00:01:49]} Kg7
{[%clk 00:51:20]} {[%emt 00:01:05]} 15. e4 {[%clk 01:13:07]} {[%emt 00:02:52]}
dxe4 {[%clk 00:48:22]} {[%emt 00:03:28]} 16. Bxe4 {[%clk 01:12:49]} {[%emt
00:00:48]} Be6 {[%clk 00:46:00]} {[%emt 00:02:53]} 17. Rd1 {[%clk 00:59:35]}
{[%emt 00:13:43]} Bd5 {[%clk 00:44:31]} {[%emt 00:01:59]} 18. Nd2 {[%clk
00:58:51]} {[%emt 00:01:14]} Bg5 {[%clk 00:39:41]} {[%emt 00:05:21]} 19. Bxd5
{[%clk 00:55:22]} {[%emt 00:04:00]} Nxd5 {[%clk 00:31:55]} {[%emt 00:08:17]} 20.
Nge4 {[%clk 00:49:35]} {[%emt 00:06:16]} Bxd2 {[%clk 00:30:16]} {[%emt
00:02:09]} 21. Nxd2 {[%clk 00:47:52]} {[%emt 00:02:14]} Rc8 {[%clk 00:27:30]}
{[%emt 00:03:15]} 22. a4 {[%clk 00:46:03]} {[%emt 00:02:19]} Qd7 {[%clk
00:24:09]} {[%emt 00:03:51]} 23. Rdc1 {[%clk 00:41:53]} {[%emt 00:04:39]} Rc6
{[%clk 00:20:56]} {[%emt 00:03:43]} 24. Nf1 {[%clk 00:34:04]} {[%emt 00:08:19]}
Rce6 {[%clk 00:19:12]} {[%emt 00:02:13]} 25. Ng3 {[%clk 00:29:26]} {[%emt
00:05:08]} h5 {[%clk 00:18:43]} {[%emt 00:00:59]} 26. h4 {[%clk 00:27:30]}
{[%emt 00:02:26]} Rf6 {[%clk 00:16:07]} {[%emt 00:03:06]} 27. Nxh5+ {[%clk
00:19:55]} {[%emt 00:08:05]} gxh5 {[%clk 00:16:10]} {[%emt 00:00:26]} 28. Qxh5
{[%clk 00:20:17]} {[%emt 00:00:09]} Rg6 {[%clk 00:15:25]} {[%emt 00:01:14]} 29.
Kf1 {[%clk 00:19:29]} {[%emt 00:01:19]} Rxg2 {[%clk 00:13:29]} {[%emt
00:02:24]} 30. Qf3 {[%clk 00:16:20]} {[%emt 00:03:40]} Rg6 {[%clk 00:10:26]}
{[%emt 00:03:33]} 31. Re1 {[%clk 00:15:55]} {[%emt 00:00:56]} Rxe1+ {[%clk
00:07:32]} {[%emt 00:03:24]} 32. Rxe1 {[%clk 00:16:11]} {[%emt 00:00:13]} Nf4
{[%clk 00:03:51]} {[%emt 00:04:11]} 33. Re5 {[%clk 00:10:52]} {[%emt 00:05:49]}
Nd3 {[%clk 00:02:49]} {[%emt 00:01:32]} 34. Rf5 {[%clk 00:07:45]} {[%emt
00:03:38]} Qe6 {[%clk 00:01:50]} {[%emt 00:01:28]} 35. Rg5 {[%clk 00:06:49]}
{[%emt 00:01:25]} Rxg5 {[%clk 00:00:53]} {[%emt 00:01:29]} 36. hxg5 {[%clk
00:07:11]} {[%emt 00:00:09]} b6 {[%clk 00:00:35]} {[%emt 00:00:48]} 37. Kg2
{[%clk 00:05:36]} {[%emt 00:02:05]} Ne1+ {[%clk 00:00:46]} {[%emt 00:00:18]}
0-1

[Event "Klubbmästerskap 2025 Torsdagar"]
[Site "Linköping, Sweden"]
[Date "2025.03.27"]
[Round "8.5"]
[White "Leijon, Noah"]
[Black "Garner, Mårten"]
[Result "1/2-1/2"]
[TimeControl "90 min + 30 sec/move"]
[WhiteElo "1803"]
[BlackElo "1841"]

1. e4 {[%clk 01:30:57]} {[%emt 00:00:03]} e6 {[%clk 01:30:16]} {[%emt
00:00:43]} 2. d4 {[%clk 01:31:24]} {[%emt 00:00:04]} d5 {[%clk 01:30:40]}
{[%emt 00:00:06]} 3. exd5 {[%clk 01:31:50]} {[%emt 00:00:03]} exd5 {[%clk
01:31:03]} {[%emt 00:00:07]} 4. Bd3 {[%clk 01:32:17]} {[%emt 00:00:04]} Nc6
{[%clk 01:31:16]} {[%emt 00:00:16]} 5. c3 {[%clk 01:31:58]} {[%emt 00:00:50]}
Bd6 {[%clk 01:31:33]} {[%emt 00:00:11]} 6. Ne2 {[%clk 01:31:44]} {[%emt
00:00:45]} Nge7 {[%clk 01:31:38]} {[%emt 00:00:24]} 7. Qc2 {[%clk 01:29:36]}
{[%emt 00:02:39]} Be6 {[%clk 01:30:25]} {[%emt 00:01:41]} 8. Bf4 {[%clk
01:27:42]} {[%emt 00:02:25]} h6 {[%clk 01:29:02]} {[%emt 00:01:52]} 9. Nd2
{[%clk 01:26:48]} {[%emt 00:01:26]} Qd7 {[%clk 01:28:44]} {[%emt 00:00:47]} 10.
Nb3 {[%clk 01:25:49]} {[%emt 00:01:30]} b6 {[%clk 01:25:48]} {[%emt 00:03:25]}
11. h3 {[%clk 01:19:18]} {[%emt 00:07:02]} Bf5 {[%clk 01:24:31]} {[%emt
00:01:46]} 12. Bxd6 {[%clk 01:14:47]} {[%emt 00:05:02]} Bxd3 {[%clk 01:24:03]}
{[%emt 00:00:57]} 13. Qxd3 {[%clk 01:15:02]} {[%emt 00:00:15]} Qxd6 {[%clk
01:24:25]} {[%emt 00:00:09]} 14. O-O-O {[%clk 01:11:51]} {[%emt 00:03:42]} a6
{[%clk 01:20:11]} {[%emt 00:04:41]} 15. g4 {[%clk 01:08:06]} {[%emt 00:04:18]}
h5 {[%clk 01:12:28]} {[%emt 00:08:12]} 16. f4 {[%clk 01:05:42]} {[%emt
00:02:55]} Ng6 {[%clk 01:07:45]} {[%emt 00:05:11]} 17. f5 {[%clk 01:02:13]}
{[%emt 00:04:01]} Nf8 {[%clk 01:04:27]} {[%emt 00:03:47]} 18. Rde1 {[%clk
00:57:44]} {[%emt 00:05:00]} Kd7 {[%clk 01:04:28]} {[%emt 00:00:28]} 19. Qf3
{[%clk 00:51:59]} {[%emt 00:06:16]} Nh7 {[%clk 00:53:45]} {[%emt 00:11:12]} 20.
Nf4 {[%clk 00:43:27]} {[%emt 00:09:02]} Nf6 {[%clk 00:51:52]} {[%emt 00:02:22]}
21. Nd2 {[%clk 00:40:48]} {[%emt 00:03:10]} hxg4 {[%clk 00:44:55]} {[%emt
00:07:26]} 22. hxg4 {[%clk 00:40:51]} {[%emt 00:00:27]} Rae8 {[%clk 00:43:05]}
{[%emt 00:02:18]} 23. g5 {[%clk 00:40:06]} {[%emt 00:01:17]} Rxh1 {[%clk
00:43:09]} {[%emt 00:00:26]} 24. Rxh1 {[%clk 00:39:38]} {[%emt 00:00:58]} Ne4
{[%clk 00:43:10]} {[%emt 00:00:28]} 25. Nxe4 {[%clk 00:36:53]} {[%emt
00:03:15]} Rxe4 {[%clk 00:42:13]} {[%emt 00:01:27]} 26. Nd3 {[%clk 00:36:27]}
{[%emt 00:00:57]} Kc8 {[%clk 00:30:01]} {[%emt 00:12:42]} 27. Rh8+ {[%clk
00:31:25]} {[%emt 00:05:32]} Kb7 {[%clk 00:30:25]} {[%emt 00:00:06]} 28. Rg8
{[%clk 00:31:31]} {[%emt 00:00:24]} Qh2 {[%clk 00:17:07]} {[%emt 00:13:47]} 29.
Rxg7 {[%clk 00:28:32]} {[%emt 00:03:31]} Re2 {[%clk 00:16:42]} {[%emt
00:00:53]} 30. Qf1 {[%clk 00:25:00]} {[%emt 00:04:04]} Rc2+ {[%clk 00:10:36]}
{[%emt 00:06:35]} 31. Kb1 {[%clk 00:25:00]} {[%emt 00:00:31]} Rg2 {[%clk
00:11:00]} {[%emt 00:00:05]} 32. Rh7 {[%clk 00:19:04]} {[%emt 00:06:28]} Qxh7
{[%clk 00:06:55]} {[%emt 00:04:34]} 33. Qxg2 {[%clk 00:19:15]} {[%emt
00:00:19]} Qxf5 {[%clk 00:07:08]} {[%emt 00:00:16]} 1/2-1/2

[Event "Klubbmästerskap 2025 Torsdagar"]
[Site "Linköping, Sweden"]
[Date "2025.03.27"]
[Round "8.6"]
[White "Snällfot, Magnus"]
[Black "Ahlström, Per"]
[Result "0-1"]
[TimeControl "90 min + 30 sec/move"]
[WhiteElo "1778"]
[BlackElo "1820"]

1. b3 {[%clk 01:30:57]} {[%emt 00:00:02]} e5 {[%clk 01:28:11]} {[%emt
00:02:50]} 2. Bb2 {[%clk 01:30:57]} {[%emt 00:00:29]} d6 {[%clk 01:27:08]}
{[%emt 00:01:32]} 3. Nc3 {[%clk 01:30:02]} {[%emt 00:01:24]} Nf6 {[%clk
01:23:34]} {[%emt 00:04:05]} 4. e3 {[%clk 01:29:28]} {[%emt 00:01:05]} Be7
{[%clk 01:22:57]} {[%emt 00:01:06]} 5. Nf3 {[%clk 01:28:48]} {[%emt 00:01:10]}
c6 {[%clk 01:20:37]} {[%emt 00:02:50]} 6. e4 {[%clk 01:25:20]} {[%emt
00:03:58]} O-O {[%clk 01:15:01]} {[%emt 00:06:05]} 7. d4 {[%clk 01:25:01]}
{[%emt 00:00:50]} Qa5 {[%clk 00:49:57]} {[%emt 00:25:33]} 8. dxe5 {[%clk
01:12:44]} {[%emt 00:12:48]} dxe5 {[%clk 00:35:39]} {[%emt 00:14:48]} 9. Bd3
{[%clk 01:06:57]} {[%emt 00:06:17]} Rd8 {[%clk 00:34:11]} {[%emt 00:01:58]} 10.
O-O {[%clk 00:59:33]} {[%emt 00:07:53]} Nbd7 {[%clk 00:31:50]} {[%emt
00:02:53]} 11. a3 {[%clk 00:44:53]} {[%emt 00:15:10]} Nf8 {[%clk 00:29:36]}
{[%emt 00:02:44]} 12. h3 {[%clk 00:38:45]} {[%emt 00:06:37]} Ne6 {[%clk
00:27:43]} {[%emt 00:02:24]} 13. b4 {[%clk 00:28:00]} {[%emt 00:11:15]} Qc7
{[%clk 00:28:03]} {[%emt 00:00:10]} 14. Qc1 {[%clk 00:27:15]} {[%emt 00:01:15]}
Nf4 {[%clk 00:24:43]} {[%emt 00:03:50]} 15. Bc4 {[%clk 00:26:36]} {[%emt
00:01:09]} b5 {[%clk 00:22:51]} {[%emt 00:02:22]} 16. Bb3 {[%clk 00:23:07]}
{[%emt 00:03:59]} Nxe4 {[%clk 00:22:03]} {[%emt 00:01:18]} 17. Re1 {[%clk
00:20:44]} {[%emt 00:02:52]} Ng5 {[%clk 00:10:34]} {[%emt 00:12:00]} 18. Nxg5
{[%clk 00:16:34]} {[%emt 00:04:40]} Bxg5 {[%clk 00:10:56]} {[%emt 00:00:08]} 19.
Qe3 {[%clk 00:16:36]} {[%emt 00:00:28]} Nxh3+ {[%clk 00:11:11]} {[%emt
00:00:14]} 0-1

[Event "Klubbmästerskap 2025 Torsdagar"]
[Site "Linköping, Sweden"]
[Date "2025.03.27"]
[Round "8.7"]
[White "Lilljebjörn, Erik Gustaf"]
[Black "Karlsson, Henrik 1974"]
[Result "1-0"]
[TimeControl "90 min + 30 sec/move"]
[WhiteElo "1783"]
[BlackElo "1804"]

1. e4 {[%clk 01:30:57]} {[%emt 00:00:02]} e6 {[%clk 01:30:53]} {[%emt
00:00:07]} 2. d4 {[%clk 01:31:21]} {[%emt 00:00:06]} d5 {[%clk 01:31:19]}
{[%emt 00:00:04]} 3. Nd2 {[%clk 01:31:42]} {[%emt 00:00:10]} a6 {[%clk
01:31:42]} {[%emt 00:00:07]} 4. c3 {[%clk 01:31:07]} {[%emt 00:01:06]} c5
{[%clk 01:31:44]} {[%emt 00:00:27]} 5. Bd3 {[%clk 01:27:52]} {[%emt 00:03:45]}
Nc6 {[%clk 01:30:50]} {[%emt 00:01:24]} 6. Ne2 {[%clk 01:23:07]} {[%emt
00:05:16]} cxd4 {[%clk 01:22:36]} {[%emt 00:08:44]} 7. exd5 {[%clk 01:20:46]}
{[%emt 00:02:51]} Qxd5 {[%clk 01:18:56]} {[%emt 00:04:10]} 8. Nf3 {[%clk
01:16:05]} {[%emt 00:05:10]} dxc3 {[%clk 01:14:41]} {[%emt 00:04:46]} 9. Nxc3
{[%clk 01:13:43]} {[%emt 00:02:52]} Bb4 {[%clk 01:15:01]} {[%emt 00:00:10]} 10.
O-O {[%clk 01:13:20]} {[%emt 00:00:53]} Bxc3 {[%clk 01:11:58]} {[%emt
00:03:34]} 11. bxc3 {[%clk 01:13:37]} {[%emt 00:00:12]} Ne5 {[%clk 01:11:45]}
{[%emt 00:00:43]} 12. Nxe5 {[%clk 01:12:12]} {[%emt 00:01:56]} Qxe5 {[%clk
01:12:07]} {[%emt 00:00:08]} 13. Qf3 {[%clk 01:03:39]} {[%emt 00:09:02]} Nf6
{[%clk 01:08:39]} {[%emt 00:03:57]} 14. Ba3 {[%clk 00:56:55]} {[%emt 00:07:14]}
Qd5 {[%clk 01:03:20]} {[%emt 00:05:50]} 15. Qg3 {[%clk 00:45:32]} {[%emt
00:11:47]} Rg8 {[%clk 01:02:14]} {[%emt 00:01:41]} 16. Rfd1 {[%clk 00:43:17]}
{[%emt 00:02:45]} Qc6 {[%clk 01:02:04]} {[%emt 00:00:40]} 17. Be2 {[%clk
00:38:10]} {[%emt 00:05:37]} Ne4 {[%clk 00:47:22]} {[%emt 00:15:13]} 18. Qh4
{[%clk 00:35:09]} {[%emt 00:03:31]} g5 {[%clk 00:47:43]} {[%emt 00:00:09]} 19.
Qxh7 {[%clk 00:25:20]} {[%emt 00:10:19]} Nf6 {[%clk 00:48:02]} {[%emt
00:00:11]} 20. Qd3 {[%clk 00:18:36]} {[%emt 00:07:11]} Bd7 {[%clk 00:46:36]}
{[%emt 00:01:57]} 21. Bf3 {[%clk 00:15:47]} {[%emt 00:03:19]} Qb6 {[%clk
00:46:57]} {[%emt 00:00:10]} 22. Rab1 {[%clk 00:15:43]} {[%emt 00:00:33]} Bb5
{[%clk 00:39:25]} {[%emt 00:08:03]} 23. c4 {[%clk 00:14:07]} {[%emt 00:02:06]}
g4 {[%clk 00:39:31]} {[%emt 00:00:23]} 24. Qc3 {[%clk 00:12:07]} {[%emt
00:02:30]} gxf3 {[%clk 00:38:18]} {[%emt 00:01:43]} 25. Qxf6 {[%clk 00:08:36]}
{[%emt 00:04:01]} Rxg2+ {[%clk 00:38:31]} {[%emt 00:00:17]} 26. Kh1 {[%clk
00:08:43]} {[%emt 00:00:23]} Qc7 {[%clk 00:38:01]} {[%emt 00:01:01]} 27. Qh8+
{[%clk 00:08:51]} {[%emt 00:00:22]} 1-0